bitfinex-derivatives/quotes_ETHF0:USTF0_20240928
["timestamp","ask_amount","ask_price","bid_price","bid_amount"]
[1727547352542,0.93114,2684.2,2683.5,7.96909342]
[1727547352735,0.37246,2684.2,2683.8,0.3725]
[1727547352934,0.37245,2684.3,2683.9,3.66849]
[1727547353136,0.75993,2684.4,2684.0,0.37248]
[1727547353532,0.37244,2684.3,2684.0,0.37248]
[1727547354233,0.37244,2684.3,2683.9,3.296]
[1727547354234,0.3875,2684.4,2684.1,3.28246]
[1727547356134,0.3875,2684.4,2684.2,0.37244]
[1727547356336,0.37239,2684.7,2684.3,3.28244]
[1727547356740,3.2078,2684.6,2684.3,3.28244]
[1727547356939,0.37239,2684.7,2684.3,3.28244]
[1727547358035,0.3724,2684.6,2684.3,2.91]
[1727547359342,0.3724,2684.8,2684.3,2.91]
[1727547359343,0.37239,2684.7,2684.3,2.91]
[1727547359545,3.58019,2684.7,2684.3,2.91]
[1727547359849,0.37241,2684.6,2684.3,2.91]
[1727547360247,0.37241,2684.6,2684.3,3.28244]
[1727547360849,0.37241,2684.6,2684.3,2.91]
[1727547361046,0.37242,2684.5,2684.1,3.65936]
[1727547361445,0.37242,2684.5,2684.2,0.37245]
[1727547361644,0.37242,2684.5,2684.1,3.65936]
[1727547361849,0.37243,2684.4,2684.1,0.3769]
[1727547362041,3.2078,2684.4,2683.9,3.66849]
[1727547362246,0.771,2684.3,2683.7,4.5175]
[1727547362456,0.771,2684.3,2683.7,0.4015]
[1727547362749,0.37247,2684.1,2683.7,0.77401]
[1727547363049,0.37246,2684.2,2683.8,0.37251]
[1727547363755,0.771,2684.3,2683.7,0.4015]
[1727547363954,3.2078,2684.1,2683.8,0.3725]
[1727547364258,0.37246,2684.2,2683.9,3.28249]
[1727547364445,0.771,2684.3,2683.9,2.91]
[1727547364446,0.37247,2684.1,2683.9,2.91]
[1727547364747,0.37249,2684.0,2683.7,3.3115]
[1727547364948,0.37249,2684.0,2683.7,3.68402]
[1727547365155,0.37247,2684.1,2683.7,3.68402]
[1727547365446,0.771,2684.3,2683.7,3.3115]
[1727547365646,0.771,2684.3,2683.7,0.4015]
[1727547365853,0.771,2684.3,2683.3,7.3238]
[1727547365854,3.2078,2684.1,2683.3,6.1178]
[1727547366052,0.37251,2683.8,2683.4,0.37256]
[1727547366461,0.37251,2683.8,2683.2,0.7921]
[1727547366462,3.2078,2683.8,2683.2,0.7921]
[1727547366662,0.37254,2683.6,2683.3,0.37258]
[1727547366949,0.37254,2683.6,2683.2,1.16468]
[1727547367147,0.7967,2683.7,2683.2,0.7921]
[1727547367349,0.37254,2683.6,2683.2,1.16469]
[1727547367549,0.7967,2683.7,2683.2,1.16469]
[1727547367550,0.7967,2683.7,2683.2,0.7921]
[1727547367747,0.37257,2683.4,2683.1,3.2884]
[1727547367948,2.91,2683.4,2682.8,0.7773]
[1727547368153,0.37258,2683.3,2682.9,0.37263]
[1727547368355,3.2078,2683.2,2682.9,0.37263]
[1727547368961,3.2078,2683.2,2683.0,0.37262]
[1727547369354,3.58039,2683.2,2682.9,0.37262]
[1727547369553,3.2078,2683.2,2682.9,0.37263]
[1727547369751,3.2078,2683.2,2683.0,0.37262]
[1727547370549,3.2078,2683.2,2683.1,0.3726]
[1727547370955,3.2078,2683.2,2683.0,0.37261]
[1727547371361,3.2078,2683.2,2682.8,3.6873]
[1727547371658,0.37255,2683.5,2682.8,3.6873]
[1727547371864,0.37255,2683.5,2683.1,0.37259]
[1727547372252,0.7967,2683.7,2683.3,0.37258]
[1727547372456,1.16923,2683.7,2683.3,0.37258]
[1727547372661,0.37254,2683.6,2683.3,0.37258]
[1727547373263,0.37256,2683.5,2683.2,0.37258]
[1727547373556,0.37256,2683.5,2683.1,0.3736]
[1727547373557,0.37256,2683.4,2683.1,0.3726]
[1727547373858,3.58036,2683.5,2683.2,0.37258]
[1727547374252,3.2078,2683.5,2682.9,3.2078]
[1727547374459,3.2078,2683.5,2683.3,0.37257]
[1727547376583,3.58036,2683.5,2683.2,0.37259]
[1727547377067,3.58036,2683.5,2683.3,0.37258]
[1727547377568,3.58036,2683.5,2683.2,0.37258]
[1727547378469,3.58036,2683.5,2683.3,0.37258]
[1727547378768,0.37256,2683.5,2683.3,0.37258]
[1727547379070,0.37256,2683.5,2683.2,0.37258]
[1727547379369,0.37256,2683.5,2683.3,0.37258]
[1727547379670,0.37256,2683.5,2683.2,0.37258]
[1727547381468,0.37257,2683.4,2683.1,0.3726]
[1727547382068,0.4047,2683.3,2683.1,0.3726]
[1727547382262,0.4047,2683.3,2683.2,0.37259]
[1727547383775,0.4047,2683.3,2683.1,0.3726]
[1727547384369,0.4047,2683.3,2683.0,0.37261]
[1727547384675,0.77729,2683.3,2682.8,3.9851]
[1727547384978,0.77729,2683.3,2683.0,0.37261]
[1727547385368,0.76699,2683.2,2683.0,0.37261]
[1727547386478,0.3944,2683.2,2683.0,0.37261]
[1727547389172,0.3944,2683.2,2683.0,0.37262]
[1727547389770,0.76699,2683.2,2683.0,0.37262]
[1727547389971,0.767,2683.2,2682.9,0.37262]
[1727547390171,0.767,2683.2,2683.0,0.37261]
[1727547390674,0.767,2683.2,2682.9,0.37262]
[1727547390675,0.37261,2683.1,2682.9,0.37262]
[1727547390873,0.3944,2683.2,2682.4,0.93176]
[1727547390874,0.3944,2683.2,2682.5,2.91]
[1727547391067,0.37262,2683.0,2682.8,0.37264]
[1727547391474,0.401,2682.9,2682.8,0.37264]
[1727547393771,0.3944,2683.2,2683.1,0.3726]
[1727547396380,3.2078,2683.7,2683.4,0.37256]
[1727547396581,1.13054,2683.6,2683.4,0.37256]
[1727547396978,0.758,2683.6,2683.0,6.4869]
[1727547397291,1.13055,2683.6,2683.4,0.37256]
[1727547397987,0.37255,2683.5,2683.3,0.37257]
[1727547398181,0.758,2683.6,2683.2,0.37258]
[1727547398381,0.758,2683.6,2683.1,4.09201235]
[1727547398382,0.37256,2683.5,2683.3,0.37257]
[1727547398582,0.37256,2683.4,2683.3,0.37257]
[1727547398989,0.37256,2683.5,2683.4,0.37256]
[1727547399586,0.37256,2683.5,2683.3,0.37257]
[1727547399987,0.37256,2683.5,2683.4,0.37256]
[1727547400277,1.13054,2683.6,2683.4,0.37256]
[1727547400588,0.37255,2683.5,2683.4,0.37256]
[1727547400789,0.37256,2683.5,2683.3,0.37257]
[1727547401189,0.37256,2683.4,2683.3,0.37257]
[1727547401787,0.37256,2683.4,2683.2,0.37259]
[1727547402387,0.37256,2683.4,2683.3,0.37258]
[1727547402791,0.37256,2683.5,2683.3,0.37258]
[1727547403589,0.37255,2683.5,2683.3,0.37258]
[1727547403989,0.37255,2683.5,2682.9,0.8075]
[1727547403990,0.37259,2683.2,2682.9,0.8075]
[1727547404191,0.7725,2683.1,2683.0,0.37262]
[1727547404398,0.37263,2683.0,2682.7,0.3745]
[1727547404696,0.37263,2683.0,2682.8,0.37264]
[1727547404893,0.37263,2683.0,2682.8,0.37265]
[1727547405095,1.14512,2683.1,2682.7,4.42542057]
[1727547405294,0.37262,2683.0,2682.8,0.37265]
[1727547405597,1.14511,2683.1,2682.9,0.37263]
[1727547405798,0.7725,2683.1,2683.0,0.37262]
[1727547406600,1.1451,2683.1,2683.0,0.37262]
[1727547407803,0.7725,2683.1,2682.9,0.37262]
[1727547408101,0.7725,2683.1,2683.0,0.37262]
[1727547412904,1.1451,2683.1,2683.0,0.37262]
[1727547413105,0.7725,2683.1,2682.8,0.37264]
[1727547413410,0.37262,2683.0,2682.7,1.35001538]
[1727547413603,0.37262,2683.0,2682.8,0.37264]
[1727547414211,4.35292,2683.1,2682.9,0.37263]
[1727547414700,0.7725,2683.1,2682.9,0.37263]
[1727547414898,0.37262,2683.0,2682.8,0.37263]
[1727547415410,0.37263,2682.9,2682.8,0.37263]
[1727547415913,0.37263,2683.0,2682.8,0.37263]
[1727547417620,0.37263,2683.0,2682.9,0.37263]
[1727547418718,0.37263,2683.0,2682.6,7.47751538]
[1727547418719,0.37263,2683.0,2682.8,0.37264]
[1727547418921,0.37264,2682.9,2682.6,4.18331538]
[1727547419113,0.37264,2682.9,2682.7,0.37266]
[1727547419320,0.37263,2683.0,2682.8,0.37265]
[1727547420322,3.9803,2683.1,2682.6,4.18331538]
[1727547420323,4.35291,2683.1,2682.9,0.37263]
[1727547420517,4.35291,2683.1,2683.0,0.37262]
[1727547420719,1.14511,2683.1,2682.9,0.37263]
[1727547421922,1.14511,2683.1,2682.8,0.37264]
[1727547421923,0.37262,2683.0,2682.8,0.37264]
[1727547422123,0.7725,2683.1,2683.0,0.37262]
[1727547422319,3.2078,2683.4,2683.3,0.37258]
[1727547422512,0.797,2683.8,2683.5,0.37255]
[1727547422513,0.754,2683.6,2683.5,0.37255]
[1727547422717,0.754,2683.6,2683.1,0.4067]
[1727547422918,0.754,2683.6,2683.3,0.407]
[1727547423120,0.754,2683.6,2683.4,0.37255]
[1727547423917,0.754,2683.6,2683.5,0.37255]
[1727547426429,3.2078,2683.8,2683.3,0.407]
[1727547426722,3.2078,2683.8,2683.4,0.3938]
[1727547426920,3.2078,2683.8,2683.7,0.37252]
[1727547427430,0.37253,2683.7,2683.5,0.37254]
[1727547427726,3.2078,2683.8,2683.5,0.37254]
[1727547427727,3.58032,2683.8,2683.5,0.37254]
[1727547427918,0.3703,2683.6,2683.5,0.37254]
[1727547430326,0.74284,2683.6,2683.4,0.37255]
[1727547430523,0.3696,2683.5,2683.4,0.37255]
[1727547432526,3.2078,2683.8,2683.2,1.34571538]
[1727547432732,3.2078,2683.8,2683.7,0.37252]
[1727547433332,3.58031,2683.8,2683.6,0.37253]
[1727547433630,3.58032,2683.8,2683.3,4.01785395]
[1727547433825,0.3745,2683.7,2683.6,0.37253]
[1727547434026,0.3745,2683.7,2683.2,3.2802]
[1727547434226,0.3745,2683.7,2683.6,0.37254]
[1727547435129,0.3745,2683.7,2683.2,3.2802]
[1727547435130,3.2078,2683.8,2683.2,3.2802]
[1727547435332,6.72664416,2684.1,2684.0,0.37248]
[1727547435333,0.3982,2684.1,2684.0,0.37248]
[1727547435531,0.7727,2684.1,2684.0,0.37248]
[1727547436935,1.14517,2684.1,2684.0,0.37248]
[1727547437331,0.7727,2684.1,2684.0,0.37248]
[1727547438328,0.7727,2684.1,2683.7,0.375]
[1727547438537,0.37249,2684.0,2683.8,0.3725]
[1727547438927,0.37249,2684.0,2683.8,0.37251]
[1727547439131,4.05517,2684.1,2683.9,0.37249]
[1727547440228,0.37248,2684.0,2683.9,0.37249]
[1727547440935,0.37248,2684.0,2683.8,0.3725]
[1727547441137,0.4012,2683.9,2683.8,0.3725]
[1727547441939,0.4012,2683.9,2683.5,0.368]
[1727547442237,0.7737,2683.9,2683.7,0.37252]
[1727547442534,0.7737,2683.9,2683.6,0.37253]
[1727547442535,0.37251,2683.8,2683.6,0.37253]
[1727547443029,0.3729,2683.7,2683.6,0.37253]
[1727547446338,0.74543,2683.7,2683.5,0.37254]
[1727547446633,0.4044,2683.6,2683.5,0.37254]
[1727547446828,0.77694,2683.6,2683.4,0.37255]
[1727547448443,0.4044,2683.6,2683.5,0.37255]
[1727547449038,0.77694,2683.6,2683.4,0.37256]
[1727547449636,0.4044,2683.6,2683.5,0.37255]
[1727547450936,0.4044,2683.6,2683.2,0.7673]
[1727547451137,0.4044,2683.6,2683.5,0.37255]
[1727547455245,0.3729,2683.7,2683.6,0.37254]
[1727547455449,0.45941,2684.5,2683.9,0.93124]
[1727547455645,0.3812,2684.4,2684.3,0.37244]
[1727547455849,0.75363,2684.4,2684.2,0.37245]
[1727547456147,0.3812,2684.4,2684.3,0.37244]
[1727547457650,0.75362,2684.4,2684.2,0.37244]
[1727547457953,0.3812,2684.4,2684.0,4.4147]
[1727547458149,0.3812,2684.4,2684.3,0.37244]
[1727547460356,0.3812,2684.4,2684.0,1.2069]
[1727547460549,0.3812,2684.4,2684.3,0.37244]
[1727547461952,0.3812,2684.4,2684.1,0.37246]
[1727547462258,0.3812,2684.4,2684.0,1.2069]
[1727547462259,6.499,2684.4,2683.8,0.787]
[1727547462456,0.37246,2684.2,2684.0,0.37247]
[1727547462757,0.37246,2684.2,2683.8,1.5509]
[1727547462962,0.37246,2684.2,2684.1,0.37247]
[1727547463454,0.37246,2684.2,2684.0,0.37247]
[1727547464956,0.37247,2684.1,2683.9,0.37249]
[1727547465261,0.4,2684.0,2683.9,0.37249]
[1727547467162,0.7852,2684.0,2683.9,0.37249]
[1727547475556,3.2078,2684.4,2683.9,0.93122]
[1727547475761,0.4074,2684.2,2684.1,0.37247]
[1727547480967,0.4074,2684.2,2683.8,3.6025]
[1727547481290,0.37247,2684.1,2683.9,0.37249]
[1727547483578,2.11986,2684.2,2683.9,0.37249]
[1727547483973,1.7474,2684.2,2683.8,3.2078]
[1727547484167,2.11985,2684.2,2684.0,0.37247]
[1727547484473,0.37247,2684.1,2683.9,0.37249]
[1727547485162,0.37248,2684.0,2683.8,3.5803]
[1727547485363,0.37247,2684.1,2683.8,3.2078]
[1727547485574,0.37247,2684.1,2683.9,0.37249]
[1727547486671,0.37247,2684.1,2683.8,0.3725]
[1727547488076,0.37247,2684.1,2683.6,0.3798]
[1727547488377,0.37247,2684.1,2683.9,0.37249]
[1727547488965,1.34,2684.0,2683.7,0.37252]
[1727547489168,1.71251,2683.8,2683.2,4.5478]
[1727547489367,1.17192,2683.7,2683.5,0.37254]
[1727547489568,0.7994,2683.7,2683.6,0.37254]
[1727547490269,1.17193,2683.7,2683.5,0.37255]
[1727547491081,1.17193,2683.7,2683.4,0.37255]
[1727547491272,0.7994,2683.7,2683.5,0.37255]
[1727547491473,1.17192,2683.7,2683.5,0.37255]
[1727547491667,1.17192,2683.7,2683.3,0.3808]
[1727547491668,1.34,2683.6,2683.2,3.2078]
[1727547491878,1.71257,2683.4,2683.0,1.34]
[1727547492069,1.34,2683.2,2682.9,0.759]
[1727547492379,1.34,2683.2,2682.8,3.2078]
[1727547492380,0.371,2683.1,2682.8,3.2078]
[1727547492578,0.371,2683.1,2682.9,0.37262]
[1727547492973,0.371,2683.1,2682.8,3.2078]
[1727547493173,0.371,2683.1,2682.9,0.37263]
[1727547493377,0.371,2683.1,2683.0,0.37262]
[1727547493679,0.371,2683.1,2682.9,0.37262]
[1727547494179,0.371,2683.1,2683.0,0.37262]
[1727547494378,0.371,2683.1,2682.8,3.2078]
[1727547494379,0.371,2683.1,2682.9,0.37262]
[1727547496266,0.371,2683.1,2682.8,3.2078]
[1727547496778,0.371,2683.1,2682.9,0.37263]
[1727547497380,0.371,2683.1,2683.0,0.37262]
[1727547497771,0.371,2683.1,2682.8,3.2078]
[1727547498180,0.371,2683.1,2682.9,0.37263]
[1727547498375,0.371,2683.1,2683.0,0.37262]
[1727547498577,0.371,2683.1,2682.8,3.2078]
[1727547498578,0.371,2683.1,2682.9,0.37263]
[1727547501179,1.34,2683.0,2682.8,0.37264]
[1727547501372,1.71262,2683.0,2682.7,0.74115]
[1727547501579,0.3853,2682.9,2682.7,0.37265]
[1727547501783,2.09793,2682.9,2682.6,0.76316]
[1727547502086,2.09793,2682.9,2682.6,0.37266]
[1727547502687,1.34,2682.7,2682.5,3.58048]
[1727547502980,1.34,2682.7,2682.5,3.2078]
[1727547502981,0.3799,2682.6,2682.5,3.2078]
[1727547503287,0.3799,2682.6,2682.5,3.58049]
[1727547504385,0.3799,2682.6,2682.3,0.3921]
[1727547504386,5.82057,2682.6,2682.3,0.76481]
[1727547504587,0.75709,2682.5,2682.3,0.37271]
[1727547504790,0.75709,2682.5,2682.2,0.37272]
[1727547505089,0.3844,2682.5,2682.3,0.37272]
[1727547505387,0.3844,2682.5,2682.4,0.3727]
[1727547506180,0.3844,2682.5,2682.3,0.37271]
[1727547506382,0.3844,2682.5,2682.4,0.3727]
[1727547507989,0.3844,2682.5,2682.3,0.37271]
[1727547508481,0.3844,2682.5,2682.1,4.5478]
[1727547508688,0.3844,2682.5,2682.4,0.3727]
[1727547515883,0.3844,2682.5,2682.3,0.37271]
[1727547516275,5.068,2682.4,2682.1,3.2078]
[1727547516482,0.3844,2682.5,2682.1,3.2078]
[1727547516483,1.34,2682.2,2682.1,3.2078]
[1727547516677,1.71273,2682.2,2682.1,3.2078]
[1727547516988,0.37274,2682.1,2681.9,0.37276]
[1727547517183,1.34,2682.0,2681.9,0.37276]
[1727547517499,1.71276,2682.0,2681.7,0.37279]
[1727547517689,1.34,2681.8,2681.6,1.52711]
[1727547517988,1.34,2681.8,2681.6,1.13741]
[1727547518289,0.388,2681.7,2681.6,1.13741]
[1727547518794,1.34,2681.9,2681.8,0.37279]
[1727547519987,1.34,2681.9,2681.7,0.37279]
[1727547520290,1.34,2681.9,2681.4,0.7501]
[1727547520684,1.34,2681.9,2681.7,0.37279]
[1727547521581,1.34,2681.9,2681.4,0.7501]
[1727547521790,1.34,2681.9,2681.7,0.37279]
[1727547521994,1.34,2681.9,2681.4,0.7501]
[1727547522196,1.34,2681.9,2681.7,0.37279]
[1727547522689,1.34,2681.9,2681.4,0.7501]
[1727547522690,1.34,2681.9,2681.8,0.37279]
[1727547522895,1.7228,2682.0,2681.6,3.2078]
[1727547523392,1.34,2682.0,2681.9,0.37277]
[1727547523781,0.3736,2682.1,2682.0,0.37276]
[1727547524298,3.2078,2682.5,2682.0,0.3947]
[1727547524593,1.34,2682.4,2682.0,1.1603]
[1727547524796,1.7401,2682.4,2682.3,0.37272]
[1727547525291,5.4681,2682.4,2682.3,0.37272]
[1727547532598,5.4681,2682.4,2682.2,0.37272]
[1727547532899,2.1128,2682.4,2682.2,0.37272]
[1727547533193,2.1128,2682.4,2682.1,0.37274]
[1727547533194,0.37272,2682.3,2682.1,0.37274]
[1727547533396,2.11281,2682.4,2682.1,0.37274]
[1727547533591,2.11281,2682.4,2682.0,1.1603]
[1727547533592,0.37272,2682.3,2682.0,1.1603]
[1727547533792,0.37272,2682.3,2682.1,0.37274]
[1727547534192,1.71272,2682.3,2682.1,0.37274]
[1727547543106,1.34,2682.3,2682.2,0.37273]
[1727547543310,3.97658,2682.6,2682.4,0.3727]
[1727547543515,3.6039,2682.6,2682.3,1.34]
[1727547543711,0.37262,2683.0,2682.5,1.34]
[1727547543906,0.37262,2683.0,2682.7,0.37266]
[1727547544406,3.96971,2683.1,2682.8,0.37264]
[1727547544606,0.37262,2683.0,2682.7,0.37266]
[1727547545305,3.5971,2683.1,2683.0,0.37262]
[1727547547709,3.5971,2683.1,2682.9,0.37263]
[1727547547909,3.5971,2683.1,2682.9,0.37262]
[1727547548417,3.96971,2683.1,2682.9,0.37262]
[1727547548711,0.37265,2682.8,2682.6,1.53806]
[1727547548917,0.75636,2682.7,2682.5,0.37268]
[1727547549106,1.34,2682.6,2682.5,0.37268]
[1727547549614,1.34,2682.6,2682.2,2.09131538]
[1727547549818,1.34,2682.6,2682.5,0.37269]
[1727547550707,1.71268,2682.6,2682.4,0.3727]
[1727547550902,2.10208,2682.6,2682.2,1.1158]
[1727547551111,2.10209,2682.6,2682.3,0.37272]
[1727547551314,1.7294,2682.6,2682.3,0.37272]
[1727547551813,1.7294,2682.6,2682.4,0.3727]
[1727547552009,2.10209,2682.6,2682.4,0.3727]
[1727547553603,2.10209,2682.6,2682.5,0.37269]
[1727547553604,1.71269,2682.6,2682.5,0.37269]
[1727547554911,3.2078,2683.1,2683.0,0.37262]
[1727547555118,0.7915,2683.3,2683.2,0.37259]
[1727547555303,3.2078,2683.7,2683.3,0.37257]
[1727547555304,0.37254,2683.6,2683.3,0.37257]
[1727547555508,0.37254,2683.6,2683.1,3.2078]
[1727547555509,0.37254,2683.6,2683.4,0.37256]
[1727547555910,3.6027,2683.7,2683.6,0.37254]
[1727547556415,3.6087,2684.1,2683.7,0.37252]
[1727547556716,3.6087,2684.1,2683.9,0.37249]
[1727547556717,0.3997,2684.1,2683.9,0.37249]
[1727547556916,0.37248,2684.0,2683.8,0.3725]
[1727547557412,0.77217,2684.1,2683.8,0.3725]
[1727547557607,0.37248,2684.0,2683.8,0.3725]
[1727547558715,0.37248,2684.0,2683.7,0.37251]
[1727547558916,0.37248,2684.0,2683.8,0.37251]
[1727547559107,0.77218,2684.1,2683.8,0.37251]
[1727547559813,0.37248,2684.0,2683.8,0.37251]
[1727547560912,0.3997,2684.1,2683.6,0.8009]
[1727547561918,0.3997,2684.1,2683.9,0.37248]
[1727547563616,0.3997,2684.1,2683.6,0.8009]
[1727547563617,0.3997,2684.1,2684.0,0.37248]
[1727547564812,0.3997,2684.1,2683.6,0.8009]
[1727547564813,0.77217,2684.1,2683.9,0.37249]
[1727547565014,0.3997,2684.1,2683.9,0.37249]
[1727547565214,0.3997,2684.1,2684.0,0.37248]
[1727547571327,0.3997,2684.1,2683.6,4.0087]
[1727547571328,0.77217,2684.1,2683.6,4.0087]
[1727547572027,0.77217,2684.1,2683.9,0.37249]
[1727547572327,0.77217,2684.1,2684.0,0.37248]
[1727547572826,0.77217,2684.1,2683.9,0.37249]
[1727547573126,0.77217,2684.1,2684.0,0.37248]
[1727547574325,0.37248,2684.0,2683.9,0.37249]
[1727547574639,0.3862,2684.0,2683.9,0.37249]
[1727547575232,0.75868,2684.0,2683.9,0.37249]
[1727547575435,0.3862,2684.0,2683.9,0.37249]
[1727547576126,0.75868,2684.0,2683.9,0.37249]
[1727547576333,1.7262,2684.0,2683.9,0.37249]
[1727547578430,2.09868,2684.0,2683.9,0.37249]
[1727547579025,2.09868,2684.0,2683.8,0.3725]
[1727547579026,0.3725,2683.9,2683.8,0.3725]
[1727547581025,8.2734,2683.9,2683.4,1.34]
[1727547581230,0.37251,2683.8,2683.7,0.37251]
[1727547581421,4.5478,2683.9,2683.8,0.37251]
[1727547581422,4.9203,2683.9,2683.8,0.37251]
[1727547581823,0.37251,2683.8,2683.7,0.37251]
[1727547582222,4.9203,2683.9,2683.8,0.37251]
[1727547582433,0.37251,2683.8,2683.7,0.37251]
[1727547582632,4.9203,2683.9,2683.8,0.37251]
[1727547583030,8.6459,2683.9,2683.8,0.37251]
[1727547583628,0.37251,2683.8,2683.7,0.37251]
[1727547583842,0.37251,2683.8,2683.7,0.37252]
[1727547583843,0.3761,2683.8,2683.7,0.37252]
[1727547589927,0.3761,2683.8,2683.2,0.3765]
[1727547589928,10.1025,2683.8,2683.2,0.3765]
[1727547590132,1.34,2683.6,2683.5,0.37254]
[1727547590324,1.34,2683.6,2683.4,0.37255]
[1727547590325,1.71254,2683.6,2683.4,0.37255]
[1727547590535,0.7477,2683.5,2683.4,0.37255]
[1727547593944,1.12025,2683.5,2683.3,0.37257]
[1727547594142,0.3912,2683.4,2683.3,0.37257]
[1727547594338,2.10377,2683.4,2683.2,0.74908]
[1727547594538,1.34,2683.3,2683.0,0.37261]
[1727547594741,0.37259,2683.2,2683.0,0.37261]
[1727547594949,1.34,2683.3,2682.9,0.37263]
[1727547595243,0.3726,2683.2,2682.9,0.37263]
[1727547595450,0.3726,2683.2,2682.7,5.6936]
[1727547595451,0.3726,2683.2,2683.0,0.37262]
[1727547597346,1.34,2683.1,2683.0,0.37262]
[1727547603058,1.7126,2683.1,2682.9,0.37263]
[1727547603258,1.34,2683.1,2682.9,0.37263]
[1727547603659,1.71261,2683.1,2682.9,0.37263]
[1727547604264,1.34,2683.1,2682.9,0.37263]
[1727547604769,1.34,2683.1,2683.0,0.37262]
[1727547606356,1.34,2683.1,2682.9,0.37263]
[1727547607162,1.34,2683.1,2683.0,0.37262]
[1727547607463,1.34,2683.1,2682.7,5.6936]
[1727547607856,1.34,2683.1,2683.0,0.37262]
[1727547608263,1.71261,2683.1,2682.9,0.37262]
[1727547608558,1.34,2683.1,2682.9,0.37262]
[1727547608964,1.34,2683.1,2683.0,0.37262]
[1727547613867,1.71262,2683.1,2682.8,0.37265]
[1727547614074,1.71262,2683.1,2682.9,0.37263]
[1727547614273,1.14913,2683.0,2682.8,0.37265]
[1727547614468,1.71263,2682.9,2682.7,4.3536]
[1727547614669,1.71263,2682.9,2682.7,1.12415]
[1727547615076,1.34,2682.9,2682.8,0.37265]
[1727547615270,1.71263,2682.9,2682.7,1.12415]
[1727547615871,1.34,2682.9,2682.8,0.37265]
[1727547616974,1.34,2682.9,2682.7,0.7515]
[1727547617173,1.34,2682.8,2682.6,0.37267]
[1727547617374,1.34,2682.7,2682.6,0.37267]
[1727547618475,1.34,2682.7,2682.5,0.37268]
[1727547618674,0.3829,2682.6,2682.5,0.37268]
[1727547619373,1.5626,2683.0,2682.7,0.37266]
[1727547619374,1.34,2682.8,2682.7,0.37266]
[1727547619574,0.3711,2682.9,2682.8,0.37263]
[1727547626373,0.3711,2682.9,2682.8,0.37265]
[1727547627078,0.3711,2682.9,2682.5,1.34]
[1727547627480,0.3711,2682.9,2682.8,0.37265]
[1727547629888,2.08373,2682.9,2682.8,0.37265]
[1727547630182,2.45733,2682.9,2682.8,0.37265]
[1727547630387,2.0847,2682.9,2682.8,0.37265]
[1727547630587,0.37266,2682.7,2682.4,0.3711]
[1727547630886,1.34,2682.5,2682.4,0.3727]
[1727547632284,1.34,2682.5,2682.3,3.2078]
[1727547632488,0.37269,2682.6,2682.3,3.2078]
[1727547632489,2.503,2682.4,2682.3,0.37272]
[1727547634489,2.503,2682.4,2682.1,0.3827]
[1727547635487,2.503,2682.4,2682.3,0.37272]
[1727547635689,2.8757,2682.4,2682.2,0.37273]
[1727547635994,2.503,2682.4,2682.3,0.37272]
[1727547636891,2.503,2682.4,2682.1,0.3827]
[1727547637091,2.503,2682.4,2682.3,0.37272]
[1727547637282,2.503,2682.4,2682.2,0.37272]
[1727547637490,2.503,2682.4,2682.1,0.3827]
[1727547638392,2.503,2682.4,2682.3,0.37272]
[1727547641303,2.503,2682.4,2682.0,0.7849]
[1727547641504,2.8757,2682.4,2682.2,0.37272]
[1727547641705,2.503,2682.4,2682.3,0.37272]
[1727547642104,2.8757,2682.4,2682.2,0.37272]
[1727547642600,2.503,2682.4,2682.3,0.37272]
[1727547644203,0.7678,2682.4,2682.3,0.37272]
[1727547650802,0.3684,2682.7,2682.2,1.7386]
[1727547651102,1.1574,2682.7,2682.2,1.7386]
[1727547651604,1.1574,2682.7,2682.6,0.37267]
[1727547651806,3.2078,2682.8,2682.7,0.37266]
[1727547654205,1.16162,2683.0,2682.8,0.37264]
[1727547654705,3.2078,2683.2,2683.1,0.3726]
[1727547655796,3.2078,2683.2,2683.1,0.7466]
[1727547657207,5.32227,2683.4,2683.2,0.37258]
[1727547657509,5.32227,2683.4,2683.3,0.37258]
[1727547657805,0.4019,2683.4,2683.3,0.37258]
[1727547658009,1.7289,2683.5,2683.4,0.37256]
[1727547659112,0.3889,2683.5,2683.4,4.09896]
[1727547662114,0.3889,2683.5,2683.4,0.37256]
[1727547666408,1.7289,2683.5,2683.0,3.5864]
[1727547666616,1.34,2683.3,2683.0,3.5864]
[1727547666917,0.3751,2683.2,2683.1,0.3726]
[1727547668118,0.3889,2683.5,2683.4,0.37256]
[1727547672116,0.3889,2683.5,2683.4,0.77686]
[1727547674315,0.3751,2683.7,2683.5,0.37255]
[1727547674521,0.3751,2683.7,2683.6,0.37254]
[1727547674722,0.3827,2683.9,2683.8,0.37251]
[1727547675023,0.3827,2683.9,2683.6,0.3959]
[1727547675024,0.374,2684.0,2683.9,0.37249]
[1727547677828,0.37244,2684.3,2684.2,0.37245]
[1727547677829,0.4028,2684.3,2684.2,0.37245]
[1727547678130,0.7991,2684.3,2684.2,0.37245]
[1727547679822,1.17155,2684.3,2684.1,0.37246]
[1727547680124,2.1391,2684.3,2684.2,0.37245]
[1727547680525,2.51154,2684.3,2684.2,0.37245]
[1727547680831,2.1391,2684.3,2684.2,0.37245]